fUSD/lending_fUSD_20250413
["ID","MTS","AMOUNT","RATE_DAILY","PERIOD"]
[357890385,1744513840149,-500.0,0.00019452,2]
[357890386,1744513840159,-500.0,0.00019452,2]
[357890387,1744513840168,-500.0,0.00019452,2]
[357890388,1744513840178,-500.0,0.00019452,2]
[357890390,1744513840187,-500.0,0.00019452,2]
[357890392,1744513840197,-500.0,0.00019452,2]
[357890394,1744513840207,-500.0,0.00019452,2]
[357890396,1744513840217,-500.0,0.00019452,2]
[357890398,1744513840227,-3389.46,0.00019452,2]
[357890400,1744513840237,-500.0,0.00019452,2]
[357890402,1744513840247,-500.0,0.00019452,2]
[357890404,1744513840256,-500.0,0.00019452,2]
[357890406,1744513840266,-4436.09,0.00019452,2]
[357890408,1744513840275,-181.00433449,0.00019452,2]
[357890410,1744513840285,-150.0,0.00019507,2]
[357890412,1744513840295,-150.0,0.00019507,2]
[357890414,1744513840304,-512.0,0.00019507,2]
[357890416,1744513840314,-1863.0,0.00019507,2]
[357890418,1744513840323,-200.0,0.00019507,2]
[357890420,1744513840333,-354.14668587,0.00019548,2]
[357890422,1744513840343,-150.0,0.00019562,2]
[357890424,1744513840353,-200.0,0.00019562,2]
[357890426,1744513840363,-512.0,0.00019562,2]
[357890428,1744513840372,-1863.0,0.00019562,2]
[357890430,1744513840382,-1279.0,0.0001958,2]
[357890432,1744513840392,-500.87,0.000196,2]
[357890434,1744513840402,-150.0,0.00019616,2]
[357890436,1744513840411,-512.0,0.00019616,2]
[357890457,1744513840686,-1863.0,0.00019616,2]
[357890458,1744513840696,-150.0,0.00019671,2]
[357890459,1744513840706,-512.0,0.00019671,2]
[357890460,1744513840716,-1863.0,0.00019671,2]
[357890461,1744513840726,-1374.64175734,0.000197,2]
[357890462,1744513840739,-2911.32637018,0.000197,2]
[357890463,1744513840749,-300.0,0.00019725,2]
[357890464,1744513840758,-301.71229768,0.00019725,2]
[357890465,1744513840768,-500.0,0.00019725,2]
[357890466,1744513840778,-150.0,0.00019726,2]
[357890467,1744513840788,-512.0,0.00019726,2]
[357890468,1744513840797,-1863.0,0.00019726,2]
[357890469,1744513840807,-500.0,0.00019726,2]
[357890470,1744513840816,-500.0,0.00019726,2]
[357890471,1744513840826,-160.19504574,0.00019726,2]
[357890472,1744513840836,-500.0,0.00019726,2]
[357890473,1744513840845,-500.0,0.00019726,2]
[357890474,1744513840855,-500.0,0.00019726,2]
[357890475,1744513840864,-525.58894868,0.00019726,2]
[357890476,1744513840874,-500.0,0.00019726,2]
[357890477,1744513840883,-500.0,0.00019726,2]
[357890478,1744513840893,-500.0,0.00019726,2]
[357890479,1744513840903,-500.0,0.00019726,2]
[357890480,1744513840912,-500.0,0.00019726,2]
[357890481,1744513840922,-500.0,0.00019726,2]
[357890482,1744513840932,-500.0,0.00019726,2]
[357890483,1744513840942,-500.0,0.00019726,2]
[357890484,1744513840951,-500.0,0.00019726,2]
[357890485,1744513840960,-500.0,0.00019726,2]
[357890486,1744513840969,-500.0,0.00019726,2]
[357890487,1744513840979,-500.0,0.00019726,2]
[357890488,1744513840988,-500.0,0.00019726,2]
[357890489,1744513840997,-500.0,0.00019726,2]
[357890490,1744513841010,-500.0,0.00019726,2]
[357890491,1744513841019,-500.0,0.00019726,2]
[357890492,1744513841028,-500.0,0.00019726,2]
[357890493,1744513841038,-347.22450109,0.00019726,2]
[357890494,1744513841047,-500.0,0.00019726,2]
[357890495,1744513841056,-500.0,0.00019726,2]
[357890496,1744513841066,-556.94539654,0.00019726,2]
[357890497,1744513841075,-577.08758389,0.00019726,2]
[357890498,1744513841084,-441.15429615,0.00019726,2]
[357890499,1744513841094,-716.38,0.00019726,2]
[357890500,1744513841103,-500.0,0.00019726,2]
[357890501,1744513841113,-500.0,0.00019726,2]
[357890502,1744513841124,-500.0,0.00019726,2]
[357890503,1744513841134,-500.0,0.00019726,2]
[357890504,1744513841143,-500.0,0.00019726,2]
[357890505,1744513841152,-500.0,0.00019726,2]
[357890506,1744513841162,-500.0,0.00019726,2]
[357890507,1744513841172,-788.0,0.00019726,2]
[357890508,1744513841181,-641.82031171,0.00019726,2]
[357890509,1744513841191,-500.0,0.00019726,2]
[357890510,1744513841200,-500.0,0.00019726,2]
[357890511,1744513841210,-31032.21,0.00019726,2]
[357890512,1744513841219,-1443.76,0.00019726,2]
[357890513,1744513841228,-622.18,0.00019726,2]
[357890514,1744513841238,-500.0,0.00019726,2]
[357890515,1744513841247,-500.0,0.00019726,2]
[357890516,1744513841258,-631.94436507,0.00019726,2]
[357890517,1744513841267,-500.0,0.00019726,2]
[357890518,1744513841277,-562.44,0.00019726,2]
[357890519,1744513841286,-639.22744867,0.00019726,2]
[357890520,1744513841296,-500.0,0.00019726,2]
[357890521,1744513841306,-500.0,0.00019726,2]
[357890522,1744513841316,-500.0,0.00019726,2]
[357890523,1744513841325,-1610.86,0.00019726,2]
[357890524,1744513841335,-500.0,0.00019726,2]
[357890525,1744513841344,-667.28,0.00019726,2]
[357890526,1744513841354,-500.0,0.00019726,2]
[357890527,1744513841363,-1272.38,0.00019726,2]
[357890528,1744513841373,-500.0,0.00019726,2]
[357890529,1744513841383,-500.0,0.00019726,2]
[357890530,1744513841392,-504.62,0.00019726,2]
[357890531,1744513841402,-500.0,0.00019726,2]
[357890532,1744513841411,-568.99,0.00019726,2]
[357890533,1744513841420,-2903.08,0.00019726,2]
[357890534,1744513841430,-939.1,0.00019726,2]
[357890535,1744513841439,-500.0,0.00019726,2]
[357890536,1744513841449,-1353.97,0.00019726,2]
[357890537,1744513841459,-500.0,0.00019726,2]
[357890538,1744513841468,-500.0,0.00019726,2]
[357890539,1744513841478,-500.0,0.00019726,2]
[357890540,1744513841487,-530.81,0.00019726,2]
[357890541,1744513841497,-500.0,0.00019726,2]
[357890542,1744513841506,-500.0,0.00019726,2]
[357890543,1744513841516,-500.0,0.00019726,2]
[357890544,1744513841525,-500.0,0.00019726,2]
[357890545,1744513841535,-500.0,0.00019726,2]
[357890546,1744513841545,-500.0,0.00019726,2]
[357890547,1744513841554,-500.0,0.00019726,2]
[357890548,1744513841564,-500.0,0.00019726,2]
[357890549,1744513841574,-500.0,0.00019726,2]
[357890550,1744513841584,-500.0,0.00019726,2]
[357890551,1744513841593,-3389.46,0.00019726,2]
[357890552,1744513841603,-500.0,0.00019726,2]
[357890553,1744513841613,-500.0,0.00019726,2]
[357890554,1744513841623,-500.0,0.00019726,2]
[357890555,1744513841632,-4436.09,0.00019726,2]
[357890556,1744513841642,-150.0,0.00019737,2]
[357890557,1744513841651,-354.14668588,0.00019762,2]
[357890558,1744513841661,-500.0,0.00019773,2]
[357890559,1744513841671,-500.0,0.00019773,2]
[357890560,1744513841680,-512.0,0.00019781,2]
[357890561,1744513841690,-1863.0,0.00019781,2]
[357890562,1744513841699,-152.8041672,0.00019795,2]
[357890563,1744513841710,-150.0,0.0001981,2]
[357890564,1744513841719,-512.0,0.00019836,2]
[357890565,1744513841729,-1863.0,0.00019836,2]
[357890566,1744513841739,-545.0,0.00019836,2]
[357890567,1744513841749,-1438.0,0.00019836,2]
[357890568,1744513841759,-907.0,0.00019836,2]
[357890569,1744513841768,-575.0,0.00019836,2]
[357890570,1744513841778,-4147.0,0.00019836,2]
[357890571,1744513841787,-3963.0,0.00019836,2]
[357890572,1744513841797,-152.0,0.00019836,2]
[357890573,1744513841807,-698.0,0.00019836,2]
[357890574,1744513841816,-1122.0,0.00019836,2]
[357890575,1744513841826,-262.24764117,0.00019863,2]
[357890576,1744513841835,-1287.96242965,0.00019886,2]
[357890577,1744513841845,-1287.96242958,0.00019888,2]
[357890578,1744513841854,-1287.96242958,0.00019889,2]
[357890579,1744513841864,-512.0,0.0001989,2]
[357890580,1744513841873,-1863.0,0.0001989,2]
[357890581,1744513841882,-1287.96242958,0.00019891,2]
[357890582,1744513841892,-1287.96242958,0.00019892,2]
[357890583,1744513841901,-1287.96242958,0.00019894,2]
[357890584,1744513841910,-1287.96242958,0.00019895,2]
[357890585,1744513841920,-1287.96242958,0.00019897,2]
[357890586,1744513841929,-1287.96242958,0.00019898,2]
[357890587,1744513841939,-1287.96242958,0.000199,2]
[357890588,1744513841949,-370.31772908,0.000199,2]
[357890589,1744513841959,-150.208,0.00019918,2]
[357890590,1744513841968,-150.0,0.00019918,2]
[357890591,1744513841978,-150.412,0.00019918,2]
[357890592,1744513841987,-241.931,0.00019918,2]
[357890593,1744513841997,-250.0,0.00019918,2]
[357890594,1744513842011,-181.914,0.00019918,2]
[357890595,1744513842021,-156.43,0.00019918,2]
[357890596,1744513842031,-172.182,0.00019918,2]
[357890597,1744513842042,-257.823,0.00019918,2]
[357890598,1744513842052,-1287.0,0.00019918,2]
[357890599,1744513842062,-2046.0,0.00019918,2]
[357890600,1744513842071,-1327.0,0.00019918,2]
[357890601,1744513842081,-795.0,0.00019918,2]
[357890602,1744513842091,-1419.505,0.00019945,2]
[357890603,1744513842100,-179.33448587,0.00019945,2]
[357890604,1744513842110,-512.0,0.00019945,2]
[357890605,1744513842119,-1863.0,0.00019945,2]
[357890606,1744513842129,-500.0,0.00019973,2]
[357890607,1744513842138,-502.94929723,0.00019973,2]
[357890608,1744513842147,-500.0,0.00019973,2]
[357890609,1744513842156,-500.0,0.00019973,2]
[357890610,1744513842166,-500.0,0.00019973,2]
[357890611,1744513842176,-514.45733583,0.00019973,2]
[357890612,1744513842185,-500.0,0.00019973,2]
[357890614,1744513842194,-504.72204853,0.00019973,2]
[357890616,1744513842204,-7711.3562077,0.00019986,2]
[357890618,1744513842213,-37352.7768017,0.00019986,2]
[357890620,1744513842222,-2106.1953392,0.00019986,2]
[357890622,1744513842231,-150.0,0.00019994,2]
[357890624,1744513842240,-500.0,0.00019999,2]
[357890626,1744513842249,-1000.8246,0.00019999,2]
[357890627,1744513842259,-3376.81187746,0.00019999,2]
[357890628,1744513842270,-1315.0,0.0002,2]
[357890629,1744513842279,-63729.96630567,0.0002,2]
[357890630,1744513842287,-258.83967971,0.0002,2]
[357890631,1744513842297,-1038.70718577,0.0002,2]
[357890632,1744513842306,-512.0,0.0002,2]
[357890633,1744513842315,-1863.0,0.0002,2]
[357890634,1744513842324,-896306.96907971,0.0002,2]
[357890635,1744513842338,-250.16374995,0.0002,2]
[357890644,1744513846231,-68597.9943765,0.0002,2]
[357890645,1744513846458,-7158.68230614,0.0002,2]
[357890646,1744513846474,-1545.24369994,0.0002,2]
[357890647,1744513846531,-814.98980894,0.0002,2]
[357890648,1744513847901,-208.57,0.0002,2]
[357890649,1744513847997,-21276.014992,0.0002,2]
[357890650,1744513848013,-1584.58455959,0.0002,2]
[357890651,1744513848024,-1086.1368,0.0002,2]
[357890652,1744513848035,-2710.09986979,0.0002,2]
[357890653,1744513923821,212.719927,0.0003,30]
[357890654,1744513924127,212.719927,0.0002,3]
[357890655,1744513924409,212.719927,0.00019998,3]
[357890656,1744513924695,212.719927,0.00019995,3]
[357890657,1744513924987,212.719927,0.00019992,3]
[357890658,1744513925290,212.719927,0.0001999,3]
[357890659,1744513926779,212.719927,0.0003,31]
[357890660,1744513929725,212.719927,0.0002,4]
[357890661,1744513930203,212.719927,0.0002,5]
[357890662,1744513930486,212.719927,0.00019996,5]
[357890663,1744513930771,212.719927,0.00019992,5]
[357890664,1744513931051,212.719927,0.00019989,5]
[357890665,1744513931325,212.719927,0.00019985,5]
[357890673,1744514446580,-175.9035176,0.00017999,2]
[357890674,1744514496179,219.40600782,0.00016059,2]
[357890675,1744514496212,789.46399218,0.00016059,2]
[357890676,1744514496707,-74.0964824,0.00017999,2]
[357890677,1744514574621,-271.9465416,0.00017951,2]
[357890678,1744514674695,2219.94,0.0003,30]
[357890679,1744514705020,898.22,0.00032,120]
[357890680,1744514710468,328.77970157,0.000154,2]
[357890681,1744514710494,173.68760331,0.000154,2]
[357890682,1744514710518,2264.97616765,0.000154,2]
[357890683,1744514720118,381.29583314,9e-05,2]
[357890684,1744514726314,832.75304515,0.000108,2]
[357890685,1744514726339,158.30608414,0.000108,2]
[357890686,1744514728440,970.4480945,0.00011,2]
[357890687,1744514743425,1000.0,0.0003,30]
[357890688,1744514755729,470.36148998,6.94e-05,2]
[357890689,1744514756428,-200.0,0.00017929,2]
[357890690,1744514756451,-127.50491243,0.00017951,2]
[357890691,1744514756846,2000.0,0.0003,30]
[357890692,1744514763312,-100.54854597,0.00017951,2]
[357890693,1744514763338,-93.14524275,0.00018133,2]
[357890695,1744514791597,208.57,0.00016712,2]
[357890696,1744514792136,-156.85475725,0.00018133,2]
[357890697,1744514847567,1000.0,0.00028,120]
[357890698,1744514910542,272.00100495,7.888e-05,2]
[357890716,1744515031650,-174.54734728,0.00018233,2]
[357890717,1744515031660,-858.73236362,0.00018316,2]
[357890718,1744515031670,-250.0,0.00018319,2]
[357890719,1744515031679,-1008.87,0.00018323,2]
[357890720,1744515031688,-176.86,0.00018333,2]
[357890721,1744515031698,-5525.83778911,0.00018522,2]
[357890722,1744515031709,-1070.44381089,0.00018522,2]
[357890723,1744515031719,-910.59,0.00018608,2]
[357890724,1744515031728,-910.59,0.00018613,2]
[357890725,1744515031737,-910.59,0.00018617,2]
[357890726,1744515031747,-910.59,0.00018622,2]
[357890727,1744515031756,-910.59,0.00018627,2]
[357890728,1744515031766,-910.59,0.00018632,2]
[357890729,1744515031775,-910.59,0.00018637,2]
[357890730,1744515031784,-212.42,0.00018639,2]
[357890731,1744515031793,-910.59,0.00018642,2]
[357890732,1744515031803,-910.59,0.00018647,2]
[357890733,1744515031812,-910.59,0.00018652,2]
[357890734,1744515031822,-910.59,0.00018657,2]
[357890735,1744515031831,-910.59,0.00018662,2]
[357890736,1744515031841,-910.59,0.00018666,2]
[357890737,1744515031850,-1000.0,0.00018667,2]
[357890738,1744515031859,-910.59,0.00018671,2]
[357890739,1744515031868,-910.59,0.00018676,2]
[357890740,1744515031878,-910.59,0.00018681,2]
[357890741,1744515031887,-850.0,0.00018686,2]
[357890742,1744515031896,-910.59,0.00018686,2]
[357890743,1744515031905,-910.59,0.00018691,2]
[357890744,1744515031916,-910.59,0.00018696,2]
[357890746,1744515031928,-910.59,0.00018701,2]
[357890748,1744515031939,-5135.36,0.00018749,2]
[357890750,1744515031949,-250.0,0.00018749,2]
[357890751,1744515031958,-187.75,0.00018752,2]
[357890752,1744515031968,-219.9288429,0.00018788,2]
[357890753,1744515031977,-174.54734728,0.00018827,2]
[357890754,1744515031987,-860.48,0.00018842,2]
[357890755,1744515031996,-3382.21189664,0.00018878,2]
[357890756,1744515032005,-4255.85523229,0.00018889,2]
[357890757,1744515032020,-663.12171579,0.00018889,2]
[357890758,1744515032031,-17381.32622928,0.00018889,2]
[357890759,1744515032053,-1599.69682264,0.00018889,2]
[357890760,1744515032063,-816.99322377,0.00018927,2]
[357890761,1744515032072,-48251.15497294,0.00019,2]
[357890762,1744515032081,-1274.26821079,0.00019,2]
[357890763,1744515032090,-250.0,0.00019,2]
[357890764,1744515032099,-1450.15627038,0.00019015,2]
[357890765,1744515032108,-4717.78292164,0.00019078,2]
[357890767,1744515037602,-221.67165284,0.00018661,2]
[357890768,1744515037611,-582.97118279,0.00018661,2]
[357890769,1744515037621,-526.10441034,0.00019078,2]
[357890770,1744515037712,-482.00673804,0.00019078,2]
[357890771,1744515037722,-269.0334,0.00019078,2]
[357890772,1744515037731,-1868.3494,0.00019078,2]
[357890773,1744515037741,-167.53,0.00019103,2]
[357890774,1744515037750,-160.34,0.00019168,2]
[357890775,1744515037759,-3159.74480323,0.00019169,2]
[357890776,1744515037825,-2566.14926671,0.00019169,2]
[357890777,1744515037835,-172.65776162,0.00019177,2]
[357890778,1744515037845,-183.6105653,0.00019177,2]
[357890779,1744515037854,-183.30343961,0.00019177,2]
[357890780,1744515037864,-500.0,0.00019178,2]
[357890781,1744515037873,-500.0,0.00019178,2]
[357890782,1744515037882,-617.51032778,0.00019178,2]
[357890783,1744515037892,-500.0,0.00019178,2]
[357890784,1744515037902,-150.0,0.00019178,2]
[357890785,1744515037911,-579.63153766,0.00019178,2]
[357890786,1744515037921,-500.0,0.00019178,2]
[357890787,1744515037931,-1475.0,0.00019178,2]
[357890788,1744515037940,-500.0,0.00019178,2]
[357890789,1744515037950,-500.0,0.00019178,2]
[357890790,1744515037960,-500.0,0.00019178,2]
[357890791,1744515037969,-598.87200638,0.00019178,2]
[357890792,1744515037979,-500.0,0.00019178,2]
[357890793,1744515037989,-500.0,0.00019178,2]
[357890794,1744515037999,-500.0,0.00019178,2]
[357890795,1744515038008,-500.0,0.00019178,2]
[357890796,1744515038017,-500.0,0.00019178,2]
[357890797,1744515038027,-500.0,0.00019178,2]
[357890798,1744515038037,-500.0,0.00019178,2]
[357890799,1744515038046,-500.0,0.00019178,2]
[357890800,1744515038055,-500.0,0.00019178,2]
[357890801,1744515038064,-500.0,0.00019178,2]
[357890802,1744515038074,-500.0,0.00019178,2]
[357890803,1744515038083,-500.0,0.00019178,2]
[357890804,1744515038093,-500.0,0.00019178,2]
[357890805,1744515038102,-500.0,0.00019178,2]
[357890806,1744515038111,-500.0,0.00019178,2]
[357890807,1744515038120,-500.0,0.00019178,2]
[357890808,1744515038129,-500.0,0.00019178,2]
[357890810,1744515038138,-500.0,0.00019178,2]
[357890811,1744515038147,-500.0,0.00019178,2]
[357890812,1744515038156,-500.0,0.00019178,2]
[357890813,1744515038165,-500.0,0.00019178,2]
[357890814,1744515038174,-500.0,0.00019178,2]
[357890815,1744515038183,-500.0,0.00019178,2]
[357890816,1744515038193,-500.0,0.00019178,2]
[357890817,1744515038203,-500.0,0.00019178,2]
[357890818,1744515038211,-500.0,0.00019178,2]
[357890819,1744515038221,-500.0,0.00019178,2]
[357890820,1744515038230,-500.0,0.00019178,2]
[357890821,1744515038239,-500.0,0.00019178,2]
[357890822,1744515038249,-500.0,0.00019178,2]
[357890823,1744515038259,-686.53,0.00019178,2]
[357890824,1744515038268,-500.0,0.00019178,2]
[357890825,1744515038277,-500.0,0.00019178,2]
[357890826,1744515038286,-273.59058409,0.00019178,2]
[357890827,1744515038298,-226.40941591,0.00019178,2]
[357890828,1744515038307,-500.0,0.00019178,2]
[357890829,1744515038315,-500.0,0.00019178,2]
[357890830,1744515038325,-641.82031171,0.00019178,2]
[357890831,1744515038334,-750.29,0.00019178,2]
[357890832,1744515038343,-631.94436507,0.00019178,2]
[357890833,1744515038352,-500.0,0.00019178,2]
[357890834,1744515038362,-500.0,0.00019178,2]
[357890835,1744515038374,-500.0,0.00019178,2]
[357890836,1744515038384,-28446.19,0.00019178,2]
[357890837,1744515038393,-500.0,0.00019178,2]
[357890838,1744515038402,-1323.45,0.00019178,2]
[357890839,1744515038411,-570.33,0.00019178,2]
[357890840,1744515038424,-500.0,0.00019178,2]
[357890841,1744515038433,-500.0,0.00019178,2]
[357890842,1744515038444,-639.22744867,0.00019178,2]
[357890843,1744515038454,-500.0,0.00019178,2]
[357890844,1744515038463,-500.0,0.00019178,2]
[357890845,1744515038472,-1476.62,0.00019178,2]
[357890846,1744515038482,-500.0,0.00019178,2]
[357890847,1744515038491,-752.15,0.00019178,2]
[357890848,1744515038500,-515.57,0.00019178,2]
[357890849,1744515038509,-500.0,0.00019178,2]
[357890850,1744515038519,-500.0,0.00019178,2]
[357890851,1744515038528,-500.0,0.00019178,2]
[357890852,1744515038537,-500.0,0.00019178,2]
[357890853,1744515038547,-521.57,0.00019178,2]
[357890854,1744515038556,-1166.35,0.00019178,2]
[357890855,1744515038565,-500.0,0.00019178,2]
[357890856,1744515038574,-500.0,0.00019178,2]
[357890857,1744515038583,-1241.13,0.00019178,2]
[357890858,1744515038592,-2661.15,0.00019178,2]
[357890859,1744515038601,-500.0,0.00019178,2]
[357890860,1744515038610,-500.0,0.00019178,2]
[357890861,1744515038619,-860.84,0.00019178,2]
[357890862,1744515038628,-500.0,0.00019178,2]
[357890863,1744515038637,-500.0,0.00019178,2]
[357890864,1744515038646,-500.0,0.00019178,2]
[357890865,1744515038655,-500.0,0.00019178,2]
[357890866,1744515038664,-500.0,0.00019178,2]
[357890867,1744515038673,-500.0,0.00019178,2]
[357890868,1744515038682,-500.0,0.00019178,2]
[357890869,1744515038691,-500.0,0.00019178,2]
[357890870,1744515038701,-500.0,0.00019178,2]
[357890871,1744515038710,-500.0,0.00019178,2]
[357890872,1744515038719,-500.0,0.00019178,2]
[357890873,1744515038728,-500.0,0.00019178,2]
[357890874,1744515038737,-500.0,0.00019178,2]
[357890875,1744515038746,-2330.25,0.00019178,2]
[357890876,1744515038755,-500.0,0.00019178,2]
[357890877,1744515038765,-4066.42,0.00019178,2]
[357890878,1744515038774,-500.0,0.00019178,2]
[357890879,1744515038783,-500.0,0.00019178,2]
[357890880,1744515038791,-500.0,0.00019178,2]
[357890881,1744515038800,-500.0,0.00019178,2]
[357890882,1744515038809,-500.0,0.00019178,2]
[357890883,1744515038818,-338.74,0.00019178,2]
[357890884,1744515038827,-2178.6348,0.00019199,2]
[357890885,1744515038837,-150.0,0.00019233,2]
[357890886,1744515038846,-500.0,0.00019233,2]
[357890887,1744515038855,-1475.0,0.00019233,2]
[357890888,1744515038863,-160.34,0.00019251,2]
[357890889,1744515038873,-5725.89406994,0.00019261,2]
[357890890,1744515038882,-500.0,0.00019288,2]
[357890891,1744515038891,-1475.0,0.00019288,2]
[357890892,1744515038899,-500.0,0.00019342,2]
[357890893,1744515038908,-1475.0,0.00019342,2]
[357890894,1744515038917,-160.34,0.00019352,2]
[357890895,1744515038926,-181.36855766,0.00019352,2]
[357890896,1744515038935,-5725.89406994,0.00019352,2]
[357890897,1744515038944,-8193.4478,0.00019352,2]
[357890898,1744515038954,-7505.1545,0.00019362,2]
[357890899,1744515038963,-500.0,0.00019397,2]
[357890900,1744515038971,-1475.0,0.00019397,2]
[357890901,1744515038981,-635.9373428,0.00019399,2]
[357890902,1744515038990,-160.34,0.00019442,2]
[357890903,1744515039000,-160.34,0.00019442,2]
[357890904,1744515039008,-160.34,0.00019442,2]
[357890905,1744515039017,-5725.89406994,0.00019443,2]
[357890906,1744515039026,-160.34,0.00019452,2]
[357890907,1744515039036,-500.0,0.00019452,2]
[357890908,1744515039045,-1475.0,0.00019452,2]
[357890909,1744515039055,-500.0,0.00019452,2]
[357890910,1744515039064,-500.0,0.00019452,2]
[357890911,1744515039073,-500.0,0.00019452,2]
[357890912,1744515039082,-500.0,0.00019452,2]
[357890913,1744515039092,-500.0,0.00019452,2]
[357890914,1744515039101,-500.0,0.00019452,2]
[357890915,1744515039110,-500.0,0.00019452,2]
[357890916,1744515039119,-500.0,0.00019452,2]
[357890917,1744515039128,-525.58894868,0.00019452,2]
[357890918,1744515039138,-500.0,0.00019452,2]
[357890919,1744515039147,-500.0,0.00019452,2]
[357890920,1744515039156,-500.0,0.00019452,2]
[357890921,1744515039165,-500.0,0.00019452,2]
[357890922,1744515039175,-500.0,0.00019452,2]
[357890923,1744515039184,-500.0,0.00019452,2]
[357890924,1744515039194,-500.0,0.00019452,2]
[357890925,1744515039203,-500.0,0.00019452,2]
[357890926,1744515039212,-500.0,0.00019452,2]
[357890927,1744515039221,-500.0,0.00019452,2]
[357890928,1744515039231,-500.0,0.00019452,2]
[357890929,1744515039241,-500.0,0.00019452,2]
[357890930,1744515039251,-500.0,0.00019452,2]
[357890931,1744515039260,-500.0,0.00019452,2]
[357890932,1744515039269,-500.0,0.00019452,2]
[357890933,1744515039278,-500.0,0.00019452,2]
[357890934,1744515039287,-500.0,0.00019452,2]
[357890935,1744515039297,-500.0,0.00019452,2]
[357890936,1744515039306,-500.0,0.00019452,2]
[357890937,1744515039315,-556.94539654,0.00019452,2]
[357890938,1744515039324,-500.0,0.00019452,2]
[357890939,1744515039334,-347.22450109,0.00019452,2]
[357890940,1744515039343,-500.0,0.00019452,2]
[357890941,1744515039352,-577.08758389,0.00019452,2]
[357890942,1744515039363,-686.53,0.00019452,2]
[357890943,1744515039375,-441.15429615,0.00019452,2]
[357890944,1744515039384,-500.0,0.00019452,2]
[357890945,1744515039393,-500.0,0.00019452,2]
[357890946,1744515039403,-500.0,0.00019452,2]
[357890947,1744515039412,-500.0,0.00019452,2]
[357890948,1744515039422,-750.29,0.00019452,2]
[357890949,1744515039431,-500.0,0.00019452,2]
[357890950,1744515039441,-500.0,0.00019452,2]
[357890951,1744515039450,-500.0,0.00019452,2]
[357890952,1744515039459,-28446.19,0.00019452,2]
[357890953,1744515039468,-572.20091116,0.00019452,2]
[357890954,1744515039477,-1323.45,0.00019452,2]
[357890956,1744515039487,-570.33,0.00019452,2]
[357890958,1744515039497,-500.0,0.00019452,2]
[357890960,1744515039506,-500.0,0.00019452,2]
[357890962,1744515039516,-500.0,0.00019452,2]
[357890964,1744515039526,-500.0,0.00019452,2]
[357890966,1744515039535,-1476.62,0.00019452,2]
[357890968,1744515039545,-500.0,0.00019452,2]
[357890970,1744515039554,-752.15,0.00019452,2]
[357890972,1744515039564,-515.57,0.00019452,2]
[357890974,1744515039573,-500.0,0.00019452,2]
[357890976,1744515039583,-500.0,0.00019452,2]
[357890978,1744515039592,-500.0,0.00019452,2]
[357890980,1744515039602,-500.0,0.00019452,2]
[357890981,1744515039611,-521.57,0.00019452,2]
[357890982,1744515039620,-1166.35,0.00019452,2]
[357890983,1744515039630,-500.0,0.00019452,2]
[357890984,1744515039639,-500.0,0.00019452,2]
[357890986,1744515039648,-1241.13,0.00019452,2]
[357890988,1744515039658,-2661.15,0.00019452,2]